fUSD/lending_fUSD_20250306
["ID","MTS","AMOUNT","RATE_DAILY","PERIOD"]
[355538872,1741242659953,-711.82,0.00012584,2]
[355538873,1741242659963,-1355.71,0.00012584,2]
[355538874,1741242659972,-1224.6,0.00012584,2]
[355538875,1741242659983,-1663.69,0.00012584,2]
[355538876,1741242659993,-517.0,0.00012584,2]
[355538877,1741242660002,-1117.25,0.00012584,2]
[355538878,1741242660012,-567.05,0.00012584,2]
[355538879,1741242660022,-1106.66,0.00012584,2]
[355538880,1741242660032,-2475.35,0.00012584,2]
[355538881,1741242660043,-1700.37,0.00012584,2]
[355538882,1741242660054,-627.38,0.00012584,2]
[355538883,1741242660064,-500.0,0.00012584,2]
[355538884,1741242660075,-695.23,0.00012584,2]
[355538885,1741242660086,-4321.77,0.00012584,2]
[355538886,1741242660097,-561.2,0.00012584,2]
[355538887,1741242660107,-500.0,0.00012584,2]
[355538888,1741242660117,-500.0,0.00012584,2]
[355538889,1741242660127,-1202.02,0.00012584,2]
[355538890,1741242660137,-560.65,0.00012584,2]
[355538891,1741242660147,-500.0,0.00012584,2]
[355538892,1741242660159,-1488.64,0.00012584,2]
[355538893,1741242660172,-500.0,0.00012584,2]
[355538894,1741242660182,-152.924899,0.00012584,2]
[355538895,1741242660192,-943.22,0.00012584,2]
[355538896,1741242660202,-372.59,0.00012585,2]
[355538897,1741242660212,-500.0,0.00012585,2]
[355538898,1741242660223,-500.0,0.00012585,2]
[355538899,1741242660235,-500.0,0.00012585,2]
[355538900,1741242660246,-500.0,0.00012585,2]
[355538901,1741242660256,-416.62097921,0.00012585,2]
[355538902,1741242660267,-500.0,0.00012585,2]
[355538903,1741242660278,-500.0,0.00012585,2]
[355538904,1741242660288,-500.0,0.00012585,2]
[355538905,1741242660300,-716.33,0.00012585,2]
[355538906,1741242660310,-500.0,0.00012585,2]
[355538907,1741242660320,-500.0,0.00012585,2]
[355538908,1741242660331,-500.0,0.00012585,2]
[355538909,1741242660341,-500.0,0.00012585,2]
[355538910,1741242660351,-500.0,0.00012585,2]
[355538911,1741242660362,-500.0,0.00012585,2]
[355538912,1741242660372,-500.0,0.00012585,2]
[355538913,1741242660383,-689.38,0.00012585,2]
[355538914,1741242660393,-500.0,0.00012585,2]
[355538915,1741242660403,-708.94,0.00012585,2]
[355538916,1741242660413,-500.0,0.00012585,2]
[355538917,1741242660422,-500.0,0.00012585,2]
[355538918,1741242660432,-649.42,0.00012585,2]
[355538919,1741242660442,-760.24,0.00012585,2]
[355538920,1741242660452,-646.64,0.00012585,2]
[355538921,1741242660463,-625.92,0.00012585,2]
[355538922,1741242660473,-151.0,0.00012585,2]
[355538923,1741242660483,-151.0,0.00012585,2]
[355538924,1741242660494,-558.949356,0.00012585,2]
[355538925,1741242660504,-151.0,0.00012585,2]
[355538926,1741242660514,-225.314895,0.00012585,2]
[355538927,1741242660524,-500.0,0.00012585,2]
[355538928,1741242660534,-151.0,0.00012585,2]
[355538929,1741242660544,-180.664935,0.00012585,2]
[355538930,1741242660556,-151.0,0.00012585,2]
[355538931,1741242660566,-180.664935,0.00012585,2]
[355538932,1741242660576,-1440.992665,0.00012585,2]
[355538933,1741242660587,-154.026522,0.00012585,2]
[355538934,1741242660597,-216.480083,0.00012585,2]
[355538935,1741242660607,-216.480083,0.00012585,2]
[355538936,1741242660617,-163.817103,0.00012585,2]
[355538937,1741242660627,-163.817103,0.00012585,2]
[355538938,1741242660637,-151.0,0.00012585,2]
[355538939,1741242660647,-152.882189,0.00012585,2]
[355538940,1741242660657,-208.574478,0.00012585,2]
[355538941,1741242660666,-169.200327,0.00012585,2]
[355538942,1741242660676,-169.200327,0.00012585,2]
[355538943,1741242660687,-151.0,0.00012585,2]
[355538944,1741242660697,-151.0,0.00012585,2]
[355538945,1741242660708,-165.950242,0.00012585,2]
[355538946,1741242660719,-165.950242,0.00012585,2]
[355538947,1741242660729,-151.0,0.00012592,2]
[355538948,1741242660739,-150.0,0.00012592,2]
[355538949,1741242660749,-500.0,0.00012593,2]
[355538950,1741242660759,-500.0,0.00012593,2]
[355538951,1741242660769,-500.0,0.00012593,2]
[355538952,1741242660780,-212.38394751,0.00012593,2]
[355538953,1741242660790,-500.0,0.00012593,2]
[355538954,1741242660802,-297.15,0.00012593,2]
[355538955,1741242660811,-500.0,0.00012593,2]
[355538956,1741242660821,-500.0,0.00012593,2]
[355538957,1741242660831,-500.0,0.00012593,2]
[355538958,1741242660841,-500.0,0.00012593,2]
[355538959,1741242660851,-500.0,0.00012593,2]
[355538960,1741242660862,-297.81,0.00012593,2]
[355538961,1741242660872,-538.68698697,0.00012593,2]
[355538962,1741242661119,-596.77,0.00012593,2]
[355538963,1741242661130,-500.0,0.00012593,2]
[355538964,1741242661141,-198.18813752,0.00012593,2]
[355538965,1741242661151,-151.0,0.00012593,2]
[355538966,1741242661166,-500.0,0.00012593,2]
[355538967,1741242661181,-151.0,0.00012593,2]
[355538968,1741242661190,-500.0,0.00012593,2]
[355538969,1741242661203,-654.3,0.00012593,2]
[355538970,1741242661214,-500.0,0.00012593,2]
[355538971,1741242661225,-1109.97,0.00012593,2]
[355538972,1741242661235,-500.0,0.00012593,2]
[355538973,1741242661251,-500.0,0.00012593,2]
[355538974,1741242661261,-500.0,0.00012593,2]
[355538975,1741242661271,-985.96,0.00012593,2]
[355538976,1741242661281,-825.39,0.00012593,2]
[355538977,1741242661291,-1144.29,0.00012593,2]
[355538978,1741242661303,-988.73,0.00012593,2]
[355538979,1741242661314,-1128.71,0.00012593,2]
[355538980,1741242661324,-1570.9,0.00012593,2]
[355538981,1741242661334,-1243.76,0.00012593,2]
[355538982,1741242661344,-500.0,0.00012593,2]
[355538983,1741242661354,-1768.14,0.00012593,2]
[355538984,1741242661364,-11269.69,0.00012593,2]
[355538985,1741242661374,-500.0,0.00012593,2]
[355538986,1741242661384,-413.89757518,0.00012593,2]
[355538987,1741242661394,-1114.37,0.00012593,2]
[355538988,1741242661404,-500.0,0.00012593,2]
[355538989,1741242661414,-1926.91,0.00012593,2]
[355538990,1741242661424,-500.0,0.00012593,2]
[355538991,1741242661434,-13274.99,0.00012593,2]
[355538992,1741242661443,-500.0,0.00012593,2]
[355538993,1741242661453,-1776.34,0.00012593,2]
[355538994,1741242661463,-500.0,0.00012593,2]
[355538995,1741242661473,-500.0,0.00012593,2]
[355538996,1741242661484,-1194.0,0.00012593,2]
[355538997,1741242661494,-2774.37,0.00012593,2]
[355538998,1741242661504,-500.0,0.00012593,2]
[355538999,1741242661514,-500.0,0.00012593,2]
[355539000,1741242661524,-1000.0,0.00012593,2]
[355539001,1741242661534,-539.58572659,0.00012594,2]
[355539002,1741242661543,-151.0,0.00012595,2]
[355539003,1741242661556,-151.0,0.00012595,2]
[355539004,1741242661567,-2288.23,0.00012595,2]
[355539005,1741242661576,-368.0,0.000126,2]
[355539006,1741242661587,-749.0,0.000126,2]
[355539007,1741242661597,-2008.44192,0.00012614,2]
[355539008,1741242661607,-265.26876045,0.00012624,2]
[355539009,1741242661617,-150.0,0.00012626,2]
[355539010,1741242661627,-345.61110762,0.0001263,2]
[355539011,1741242661638,-150.0,0.00012656,2]
[355539012,1741242661648,-150.0,0.00012659,2]
[355539013,1741242661658,-214.623962,0.00012669,2]
[355539014,1741242661669,-214.623962,0.00012669,2]
[355539015,1741242661679,-151.0,0.00012669,2]
[355539016,1741242661690,-151.0,0.00012669,2]
[355539017,1741242661700,-151.0,0.00012669,2]
[355539018,1741242661710,-573.14,0.00012669,2]
[355539019,1741242661720,-540.31,0.00012669,2]
[355539020,1741242661730,-506.31,0.00012669,2]
[355539021,1741242661741,-151.0,0.00012669,2]
[355539022,1741242661751,-151.0,0.00012669,2]
[355539023,1741242661761,-151.0,0.00012669,2]
[355539024,1741242661771,-500.0,0.00012669,2]
[355539025,1741242661781,-759.62,0.00012669,2]
[355539026,1741242661791,-500.0,0.00012669,2]
[355539027,1741242661802,-500.0,0.00012669,2]
[355539028,1741242661813,-530.4,0.00012669,2]
[355539029,1741242661823,-500.0,0.00012669,2]
[355539030,1741242661833,-500.0,0.00012669,2]
[355539031,1741242661843,-500.0,0.00012669,2]
[355539032,1741242661852,-500.0,0.00012669,2]
[355539033,1741242661863,-583.92,0.00012669,2]
[355539034,1741242661874,-605.52,0.00012669,2]
[355539035,1741242661884,-500.0,0.00012669,2]
[355539036,1741242661894,-151.0,0.00012669,2]
[355539037,1741242661904,-500.0,0.00012669,2]
[355539038,1741242661914,-500.0,0.00012669,2]
[355539039,1741242661924,-500.0,0.00012669,2]
[355539040,1741242661934,-500.0,0.00012669,2]
[355539041,1741242661944,-500.0,0.00012669,2]
[355539042,1741242661954,-500.0,0.00012669,2]
[355539043,1741242661964,-500.0,0.00012669,2]
[355539044,1741242661973,-500.0,0.00012669,2]
[355539045,1741242661983,-702.88,0.00012669,2]
[355539046,1741242661992,-500.0,0.00012669,2]
[355539047,1741242662001,-500.0,0.00012669,2]
[355539048,1741242662011,-500.0,0.00012669,2]
[355539049,1741242662020,-612.48,0.00012669,2]
[355539050,1741242662030,-840.9,0.00012669,2]
[355539051,1741242662039,-1626.09,0.00012669,2]
[355539052,1741242662050,-1157.93,0.00012669,2]
[355539053,1741242662060,-500.0,0.00012669,2]
[355539054,1741242662069,-500.0,0.00012669,2]
[355539055,1741242662079,-500.0,0.00012669,2]
[355539056,1741242662088,-586.67,0.00012669,2]
[355539057,1741242662098,-833.12,0.00012669,2]
[355539058,1741242662108,-715.21,0.00012669,2]
[355539059,1741242662117,-500.0,0.00012669,2]
[355539060,1741242662127,-506.63,0.00012669,2]
[355539061,1741242662137,-1582.89,0.00012669,2]
[355539062,1741242662146,-4845.47,0.00012669,2]
[355539063,1741242662155,-932.14,0.00012669,2]
[355539064,1741242662167,-1685.32,0.00012669,2]
[355539065,1741242662177,-834.77,0.00012669,2]
[355539066,1741242662187,-500.0,0.00012669,2]
[355539067,1741242662197,-500.0,0.00012669,2]
[355539068,1741242662207,-500.0,0.00012669,2]
[355539069,1741242662217,-584.63,0.00012669,2]
[355539070,1741242662227,-500.0,0.00012669,2]
[355539071,1741242662237,-500.0,0.00012669,2]
[355539072,1741242662249,-482.37767858,0.00012669,2]
[355539073,1741242662260,-500.0,0.00012669,2]
[355539074,1741242662269,-689.0,0.00012675,5]
[355539075,1741242662279,-325.04434734,0.00012684,2]
[355539076,1741242662288,-345.61110762,0.00012685,2]
[355539077,1741242662299,-150.0,0.00012689,2]
[355539078,1741242662308,-265.26876045,0.00012693,2]
[355539079,1741242662318,-708.24182511,0.00012694,2]
[355539080,1741242662327,-587.0,0.00012694,2]
[355539081,1741242662337,-6191.73,0.000127,2]
[355539082,1741242662347,-150.0,0.00012709,2]
[355539083,1741242662356,-150.0,0.00012716,2]
[355539084,1741242662370,-150.0,0.00012724,2]
[355539085,1741242662380,-345.61110762,0.0001274,2]
[355539086,1741242662389,-113445.0,0.0001274,2]
[355539087,1741242662398,-405.36,0.00012747,2]
[355539088,1741242662408,-166.20849276,0.00012748,2]
[355539089,1741242662417,-150.0,0.00012754,2]
[355539090,1741242662426,-824.89,0.00012757,2]
[355539091,1741242662436,-500.0,0.00012757,2]
[355539092,1741242662445,-500.0,0.00012757,2]
[355539093,1741242662455,-920.69,0.00012757,2]
[355539094,1741242662464,-1212.33,0.00012757,2]
[355539095,1741242662473,-1575.43,0.00012757,2]
[355539096,1741242662483,-1088.41,0.00012757,2]
[355539097,1741242662492,-1646.66,0.00012757,2]
[355539098,1741242662501,-1523.14,0.00012757,2]
[355539099,1741242662511,-878.32,0.00012757,2]
[355539100,1741242662520,-1263.93,0.00012757,2]
[355539101,1741242662530,-1353.13,0.00012757,2]
[355539102,1741242662539,-953.27,0.00012757,2]
[355539103,1741242662549,-3937.79,0.00012757,2]
[355539104,1741242662558,-646.81,0.00012757,2]
[355539105,1741242662568,-721.41,0.00012757,2]
[355539106,1741242662577,-1233.48,0.00012757,2]
[355539107,1741242662586,-1170.19,0.00012757,2]
[355539108,1741242662595,-655.5,0.00012757,2]
[355539109,1741242662605,-4451.11,0.00012757,2]
[355539110,1741242662615,-500.0,0.00012757,2]
[355539111,1741242662625,-574.72,0.00012757,2]
[355539112,1741242662634,-1581.912246,0.00012758,2]
[355539113,1741242662644,-890.79,0.00012758,2]
[355539114,1741242662654,-1484.36,0.00012758,2]
[355539115,1741242662664,-500.0,0.00012758,2]
[355539116,1741242662673,-6051.9,0.00012758,2]
[355539117,1741242662683,-1947.4,0.00012758,2]
[355539118,1741242662692,-1355.74,0.00012758,2]
[355539119,1741242662702,-993.02325,0.00012758,2]
[355539120,1741242662711,-1865.24,0.00012758,2]
[355539121,1741242662721,-1308.88,0.00012758,2]
[355539122,1741242662731,-2023.42,0.00012758,2]
[355539123,1741242662740,-808.1,0.00012758,2]
[355539124,1741242662750,-1087.99,0.00012758,2]
[355539125,1741242662760,-713.77,0.00012758,2]
[355539126,1741242662770,-1242.63,0.00012758,2]
[355539127,1741242662779,-500.0,0.00012758,2]
[355539128,1741242662789,-841.98,0.00012758,2]
[355539129,1741242662799,-1122.94,0.00012758,2]
[355539130,1741242662808,-1427.28,0.00012758,2]
[355539131,1741242662818,-1077.08,0.00012758,2]
[355539132,1741242662828,-1687.03,0.00012758,2]
[355539133,1741242662839,-3373.3,0.00012758,2]
[355539134,1741242662848,-1088.82,0.00012758,2]
[355539135,1741242662858,-1049.59,0.00012758,2]
[355539136,1741242662868,-7192.11,0.00012758,2]
[355539137,1741242662878,-265.26876045,0.00012762,2]
[355539138,1741242662888,-345.61110762,0.00012795,2]
[355539139,1741242662898,-150.0,0.00012798,2]
[355539140,1741242662907,-1650.0,0.000128,2]
[355539141,1741242662916,-1000.0,0.000128,2]
[355539142,1741242662926,-1000.0,0.000128,2]
[355539143,1741242662935,-1000.0,0.000128,2]
[355539144,1741242662944,-1000.0,0.000128,2]
[355539145,1741242662954,-1000.0,0.000128,2]
[355539146,1741242662963,-1000.0,0.000128,2]
[355539147,1741242662972,-1000.0,0.000128,2]
[355539148,1741242662981,-1000.0,0.000128,2]
[355539149,1741242662991,-229.6835843,0.000128,2]
[355539150,1741242663000,-1000.0,0.00012804,2]
[355539151,1741242663009,-1000.0,0.00012809,2]
[355539152,1741242663019,-150.0,0.00012815,2]
[355539153,1741242663029,-265.26876045,0.00012831,2]
[355539154,1741242663038,-500.0,0.00012858,2]
[355539155,1741242663048,-500.0,0.00012858,2]
[355539156,1741242663059,-566.12,0.00012858,2]
[355539157,1741242663069,-668.76,0.00012858,2]
[355539158,1741242663078,-500.0,0.00012858,2]
[355539159,1741242663088,-747.52,0.00012858,2]
[355539160,1741242663097,-500.0,0.00012858,2]
[355539161,1741242663107,-500.0,0.00012858,2]
[355539162,1741242663117,-500.0,0.00012858,2]
[355539163,1741242663127,-646.29856502,0.00012858,2]
[355539164,1741242663136,-538.89,0.00012858,2]
[355539165,1741242663146,-593.35,0.00012858,2]
[355539166,1741242663155,-500.0,0.00012858,2]
[355539167,1741242663168,-557.61,0.00012858,2]
[355539168,1741242663178,-267.07,0.00012858,2]
[355539169,1741242663188,-230.98783744,0.00012858,2]
[355539170,1741242663197,-500.0,0.00012858,2]
[355539171,1741242663208,-811.14,0.00012858,2]
[355539172,1741242663218,-500.0,0.00012858,2]
[355539173,1741242663227,-643.07,0.00012858,2]
[355539174,1741242663238,-813.76,0.00012858,2]
[355539175,1741242663247,-500.0,0.00012858,2]
[355539176,1741242663257,-500.0,0.00012858,2]
[355539177,1741242663266,-500.0,0.00012858,2]
[355539178,1741242663276,-675.83,0.00012858,2]
[355539179,1741242663286,-500.0,0.00012858,2]
[355539180,1741242663295,-305.47,0.00012858,2]
[355539181,1741242663306,-583.36,0.00012858,2]
[355539182,1741242663316,-627.85,0.00012858,2]
[355539183,1741242663326,-806.82,0.00012858,2]
[355539184,1741242663335,-500.0,0.00012858,2]
[355539185,1741242663345,-595.42,0.00012858,2]
[355539186,1741242663354,-716.19,0.00012858,2]
[355539187,1741242663363,-641.12,0.00012858,2]
[355539188,1741242663373,-500.0,0.00012858,2]
[355539189,1741242663382,-726.67,0.00012858,2]
[355539190,1741242663392,-877.44,0.00012858,2]
[355539191,1741242663402,-1110.25,0.00012858,2]
[355539192,1741242663412,-3653.64,0.00012858,2]
[355539193,1741242663422,-1032.55,0.00012858,2]
[355539194,1741242663432,-500.0,0.00012858,2]
[355539195,1741242663442,-569.37,0.00012858,2]
[355539196,1741242663452,-500.0,0.00012858,2]
[355539197,1741242663513,-3177.11,0.00012858,2]
[355539198,1741242663523,-500.0,0.00012858,2]
[355539199,1741242663533,-500.0,0.00012858,2]
[355539200,1741242663542,-558.13,0.00012858,2]
[355539201,1741242663554,-3631.02,0.00012858,2]
[355539202,1741242663564,-3181.82,0.00012858,2]
[355539203,1741242663574,-745.68,0.00012858,2]
[355539204,1741242663584,-711.82,0.00012858,2]
[355539205,1741242663594,-150.0,0.00012858,2]
[355539206,1741242663603,-1355.71,0.00012858,2]
[355539207,1741242663613,-1224.6,0.00012858,2]
[355539208,1741242663623,-1663.69,0.00012858,2]
[355539209,1741242663633,-517.0,0.00012858,2]
[355539210,1741242663642,-1117.25,0.00012858,2]
[355539211,1741242663652,-567.05,0.00012858,2]
[355539212,1741242663663,-1106.66,0.00012858,2]
[355539213,1741242663672,-2475.35,0.00012858,2]
[355539214,1741242663682,-1700.37,0.00012858,2]
[355539215,1741242663692,-627.38,0.00012858,2]
[355539216,1741242663702,-514.48,0.00012858,2]
[355539217,1741242663713,-695.23,0.00012858,2]
[355539218,1741242663723,-4321.77,0.00012858,2]
[355539219,1741242663733,-561.2,0.00012858,2]
[355539220,1741242663743,-500.0,0.00012858,2]
[355539221,1741242663754,-500.0,0.00012858,2]
[355539222,1741242663764,-1202.02,0.00012858,2]
[355539223,1741242663774,-560.65,0.00012858,2]
[355539224,1741242663785,-500.0,0.00012858,2]
[355539225,1741242663795,-1488.64,0.00012858,2]
[355539226,1741242663806,-500.0,0.00012858,2]
[355539227,1741242663816,-943.22,0.00012858,2]
[355539228,1741242663825,-371.98,0.00012859,2]
[355539229,1741242663835,-500.0,0.00012859,2]
[355539230,1741242663844,-500.0,0.00012859,2]
[355539231,1741242663854,-500.0,0.00012859,2]
[355539232,1741242663864,-500.0,0.00012859,2]
[355539233,1741242663874,-500.0,0.00012859,2]
[355539234,1741242663883,-500.0,0.00012859,2]
[355539235,1741242663892,-716.33,0.00012859,2]
[355539236,1741242663902,-500.0,0.00012859,2]
[355539237,1741242663912,-500.0,0.00012859,2]
[355539238,1741242663922,-500.0,0.00012859,2]
[355539239,1741242663931,-500.0,0.00012859,2]
[355539240,1741242663941,-500.0,0.00012859,2]
[355539241,1741242663951,-500.0,0.00012859,2]
[355539242,1741242663960,-500.0,0.00012859,2]
[355539243,1741242663970,-689.38,0.00012859,2]
[355539244,1741242663980,-572.55684027,0.00012859,2]
[355539245,1741242663989,-708.94,0.00012859,2]
[355539246,1741242663999,-500.0,0.00012859,2]
[355539247,1741242664009,-500.0,0.00012859,2]
[355539248,1741242664018,-760.24,0.00012859,2]
[355539249,1741242664028,-625.92,0.00012859,2]
[355539250,1741242664037,-500.0,0.00012859,2]
[355539251,1741242664051,-150.0,0.00012863,2]
[355539252,1741242664060,-500.0,0.00012867,2]
[355539253,1741242664070,-500.0,0.00012867,2]
[355539254,1741242664080,-545.18101731,0.00012867,2]
[355539255,1741242664089,-500.0,0.00012867,2]
[355539256,1741242664099,-500.0,0.00012867,2]
[355539257,1741242664109,-500.0,0.00012867,2]
[355539258,1741242664119,-500.0,0.00012867,2]
[355539259,1741242664129,-531.70263355,0.00012867,2]
[355539260,1741242664138,-500.0,0.00012867,2]
[355539261,1741242664150,-500.0,0.00012867,2]
[355539262,1741242664161,-500.0,0.00012867,2]
[355539263,1741242664172,-151.0,0.00012867,2]
[355539264,1741242664182,-151.0,0.00012867,2]
[355539265,1741242664191,-558.949356,0.00012867,2]
[355539266,1741242664202,-500.0,0.00012867,2]
[355539267,1741242664211,-151.0,0.00012867,2]
[355539268,1741242664221,-654.3,0.00012867,2]
[355539269,1741242664231,-500.0,0.00012867,2]
[355539270,1741242664243,-151.0,0.00012867,2]
[355539271,1741242664253,-180.664935,0.00012867,2]
[355539272,1741242664263,-151.0,0.00012867,2]
[355539273,1741242664272,-180.664935,0.00012867,2]
[355539274,1741242664283,-1440.992665,0.00012867,2]
[355539275,1741242664292,-1109.97,0.00012867,2]
[355539276,1741242664303,-1440.992665,0.00012867,2]
[355539277,1741242664312,-500.0,0.00012867,2]
[355539278,1741242664322,-500.0,0.00012867,2]
[355539279,1741242664331,-500.0,0.00012867,2]
[355539280,1741242664340,-985.96,0.00012867,2]
[355539281,1741242664350,-825.39,0.00012867,2]
[355539282,1741242664359,-1144.29,0.00012867,2]
[355539283,1741242664369,-988.73,0.00012867,2]
[355539284,1741242664378,-1128.71,0.00012867,2]
[355539285,1741242664388,-1570.9,0.00012867,2]
[355539286,1741242664397,-1243.76,0.00012867,2]
[355539287,1741242664406,-216.480083,0.00012867,2]
[355539288,1741242664415,-216.480083,0.00012867,2]
[355539289,1741242664425,-178.64629818,0.00012867,2]
[355539290,1741242664434,-1768.14,0.00012867,2]
[355539291,1741242664444,-163.817103,0.00012867,2]
[355539292,1741242664454,-163.817103,0.00012867,2]
[355539293,1741242664464,-11269.69,0.00012867,2]
[355539294,1741242664473,-151.0,0.00012867,2]
[355539295,1741242664483,-500.0,0.00012867,2]
[355539296,1741242664492,-1114.37,0.00012867,2]
[355539297,1741242664501,-500.0,0.00012867,2]
[355539298,1741242664511,-169.200327,0.00012867,2]
[355539299,1741242664520,-169.200327,0.00012867,2]
[355539300,1741242664530,-1926.91,0.00012867,2]
[355539301,1741242664540,-500.0,0.00012867,2]
[355539302,1741242664550,-13274.99,0.00012867,2]
[355539303,1741242664561,-151.0,0.00012867,2]
[355539304,1741242664570,-500.0,0.00012867,2]
[355539305,1741242664580,-256.440532,0.00012867,2]
[355539306,1741242664590,-1776.34,0.00012867,2]
[355539307,1741242664599,-500.0,0.00012867,2]
[355539308,1741242664609,-500.0,0.00012867,2]
[355539309,1741242664619,-1194.0,0.00012867,2]
[355539310,1741242664629,-165.950242,0.00012867,2]
[355539311,1741242664638,-2774.37,0.00012867,2]
[355539312,1741242664648,-165.950242,0.00012867,2]
[355539313,1741242664658,-500.0,0.00012867,2]
[355539314,1741242664668,-500.0,0.00012867,2]
[355539315,1741242664677,-1000.0,0.00012867,2]
[355539316,1741242664687,-151.0,0.00012869,2]
[355539317,1741242664696,-2288.23,0.00012869,2]
[355539318,1741242664706,-151.0,0.00012869,2]
[355539319,1741242664715,-151.0,0.00012869,2]
[355539320,1741242664724,-297.42,0.0001287,2]
[355539321,1741242664734,-150.0,0.00012872,2]
[355539322,1741242664744,-150.0,0.00012878,2]
[355539323,1741242664753,-708.24182511,0.000129,2]
[355539324,1741242664763,-325.04434734,0.000129,2]
[355539325,1741242664773,-185.6390955,0.000129,2]
[355539326,1741242664782,-265.26876045,0.000129,2]
[355539327,1741242664792,-150.0,0.00012901,2]
[355539328,1741242664803,-500.0,0.0001292,2]
[355539329,1741242664812,-700.0,0.0001292,2]
[355539330,1741242664820,-150.0,0.00012936,2]
[355539331,1741242664830,-150.0,0.00012939,2]
[355539332,1741242664839,-214.623962,0.00012943,2]
[355539333,1741242664849,-214.623962,0.00012943,2]
[355539334,1741242664858,-151.0,0.00012943,2]
[355539335,1741242664867,-151.0,0.00012943,2]
[355539336,1741242664876,-195.65488,0.00012943,2]
[355539337,1741242664886,-573.14,0.00012943,2]
[355539338,1741242664895,-540.31,0.00012943,2]
[355539339,1741242664905,-506.31,0.00012943,2]
[355539340,1741242664914,-151.0,0.00012943,2]
[355539341,1741242664924,-151.0,0.00012943,2]
[355539342,1741242664933,-151.0,0.00012943,2]
[355539343,1741242664942,-500.0,0.00012943,2]
[355539344,1741242664951,-759.62,0.00012943,2]
[355539345,1741242664961,-500.0,0.00012943,2]
[355539346,1741242664970,-500.0,0.00012943,2]
[355539347,1741242664979,-530.4,0.00012943,2]
[355539348,1741242664988,-500.0,0.00012943,2]
[355539349,1741242664998,-500.0,0.00012943,2]
[355539350,1741242665008,-500.0,0.00012943,2]
[355539351,1741242665020,-500.0,0.00012943,2]
[355539352,1741242665030,-583.92,0.00012943,2]
[355539353,1741242665039,-605.52,0.00012943,2]
[355539354,1741242665051,-500.0,0.00012943,2]
[355539355,1741242665060,-153.140584,0.00012943,2]
[355539356,1741242665069,-500.0,0.00012943,2]
[355539357,1741242665079,-500.0,0.00012943,2]
[355539358,1741242665088,-500.0,0.00012943,2]
[355539359,1741242665098,-500.0,0.00012943,2]
[355539360,1741242665107,-500.0,0.00012943,2]
[355539361,1741242665117,-500.0,0.00012943,2]
[355539362,1741242665128,-500.0,0.00012943,2]
[355539363,1741242665138,-500.0,0.00012943,2]
[355539364,1741242665148,-702.88,0.00012943,2]
[355539365,1741242665158,-500.0,0.00012943,2]
[355539366,1741242665170,-500.0,0.00012943,2]
[355539367,1741242665180,-500.0,0.00012943,2]
[355539368,1741242665189,-612.48,0.00012943,2]
[355539369,1741242665198,-840.9,0.00012943,2]
[355539370,1741242665209,-1626.09,0.00012943,2]
[355539371,1741242665218,-1157.93,0.00012943,2]